bitfinex/quotes_BTCUSD_20260215
["timestamp","ask_amount","ask_price","bid_price","bid_amount"]
[1771143428223,4e-05,70800.0,70799.0,0.09433435]
[1771143428647,0.0002,70805.0,70802.0,0.07061874]
[1771143429385,0.0002,70805.0,70801.0,0.07062029]
[1771143430139,0.0002,70805.0,70798.0,0.07084168]
[1771143430716,0.07081673,70805.0,70798.0,0.07084168]
[1771143431274,0.07061781,70804.0,70798.0,0.00022]
[1771143431486,0.07062692,70795.0,70792.0,0.00022]
[1771143431700,0.07062828,70794.0,70792.0,0.00022]
[1771143431903,0.07062585,70796.0,70792.0,0.00022]
[1771143432101,0.0240714,70800.0,70792.0,0.07084864]
[1771143432307,0.09469461,70800.0,70793.0,0.07062781]
[1771143432511,0.07062287,70799.0,70792.0,0.07084905]
[1771143432870,0.0240714,70800.0,70792.0,0.00022]
[1771143433075,0.07062616,70796.0,70792.0,0.00022]
[1771143433657,0.07062636,70797.0,70792.0,0.00022]
[1771143433874,0.07062545,70796.0,70792.0,0.00022]
[1771143434242,0.07062742,70795.0,70792.0,0.00022]
[1771143434395,0.07062559,70796.0,70792.0,0.00022]
[1771143434589,0.07062496,70797.0,70792.0,0.00022]
[1771143434975,0.07062545,70796.0,70792.0,0.00022]
[1771143435436,0.07062496,70797.0,70792.0,0.00022]
[1771143435769,0.07062549,70796.0,70792.0,0.00022]
[1771143436141,0.0706247,70797.0,70792.0,0.00022]
[1771143436497,0.28249538,70798.0,70792.0,0.00022]
[1771143436711,0.07062712,70795.0,70792.0,0.00022]
[1771143436911,0.07062737,70796.0,70792.0,0.00022]
[1771143437338,0.07062588,70796.0,70792.0,0.00022]
[1771143438022,0.07062789,70794.0,70792.0,0.00022]
[1771143438220,0.07062845,70793.0,70790.0,0.00022]
[1771143438466,0.0706277,70794.0,70790.0,0.00022]
[1771143438647,0.07062852,70793.0,70790.0,0.00022]
[1771143439179,0.07062769,70794.0,70790.0,0.00022]
[1771143440144,0.07062745,70794.0,70790.0,0.00022]
[1771143440471,0.02436032,70793.0,70790.0,0.00022]
[1771143440669,0.02436032,70793.0,70785.0,0.00022]
[1771143440837,0.07063015,70792.0,70785.0,0.00028104]
[1771143441042,0.07063056,70791.0,70785.0,0.00028104]
[1771143443028,0.09499241,70790.0,70785.0,0.00028104]
[1771143443339,0.07063438,70788.0,70785.0,0.00028104]
[1771143443576,0.07063413,70788.0,70785.0,0.00028104]
[1771143443969,0.09499299,70789.0,70785.0,0.00028104]
[1771143444386,0.07063344,70788.0,70785.0,0.00028104]
[1771143445023,0.02436032,70787.0,70785.0,0.00028104]
[1771143445489,0.09499543,70787.0,70785.0,0.00028104]
[1771143445684,0.07063511,70787.0,70785.0,0.00028104]
[1771143445883,0.07063346,70788.0,70785.0,0.00028104]
[1771143446258,4e-05,70790.0,70785.0,0.00028104]
[1771143446846,0.30815481,70799.0,70785.0,0.00028104]
[1771143446847,0.07062156,70800.0,70792.0,0.07062867]
[1771143447089,0.07061747,70804.0,70790.0,0.59915914]
[1771143447245,0.07061747,70804.0,70794.0,0.07062672]
[1771143447444,0.28246991,70804.0,70791.0,0.02405625]
[1771143447702,0.07062346,70798.0,70791.0,0.02405625]
[1771143447902,0.02456032,70805.0,70791.0,0.09468594]
[1771143448055,0.02456032,70805.0,70791.0,0.02405625]
[1771143448263,0.02436032,70800.0,70786.0,0.33824]
[1771143448491,0.07062342,70799.0,70790.0,0.5991597]
[1771143448649,0.07062357,70798.0,70790.0,0.52852866]
[1771143449052,0.07062357,70798.0,70788.0,0.07063319]
[1771143449338,0.02436032,70802.0,70786.0,0.36229625]
[1771143449513,0.07062865,70793.0,70786.0,0.36229625]
[1771143449689,0.07062948,70792.0,70786.0,0.36229625]
[1771143449887,0.02436032,70799.0,70786.0,0.02405625]
[1771143450095,0.07062407,70798.0,70789.0,0.07063156]
[1771143450494,0.07062476,70797.0,70789.0,0.07063156]
[1771143450694,0.0002,70805.0,70791.0,0.02405625]
[1771143450940,0.07061909,70803.0,70794.0,0.07062679]
[1771143451118,0.0706201,70802.0,70794.0,0.07062679]
[1771143451298,0.07062051,70801.0,70794.0,0.07062679]
[1771143451626,0.07062051,70801.0,70793.0,0.07062823]
[1771143452168,0.28251387,70793.0,70787.0,0.02405625]
[1771143452377,0.0706327,70789.0,70780.0,0.07081157]
[1771143452578,0.30815481,70798.0,70780.0,0.0001709]
[1771143452811,0.09499459,70788.0,70780.0,0.0001709]
[1771143453846,0.09499459,70788.0,70780.0,0.07081193]
[1771143454394,0.07063453,70787.0,70780.0,0.07081193]
[1771143454607,0.09499459,70788.0,70780.0,0.0001709]
[1771143454809,0.09499459,70788.0,70780.0,0.07081196]
[1771143455409,0.07063427,70788.0,70781.0,0.07064017]
[1771143455723,0.07063272,70789.0,70778.0,0.52874866]
[1771143455951,0.07063272,70789.0,70781.0,0.07063969]
[1771143457613,0.07062967,70792.0,70780.0,0.28024955]
[1771143457834,0.07062967,70792.0,70785.0,0.07063622]
[1771143458065,0.07062967,70792.0,70784.0,0.09469325]
[1771143458265,0.07062967,70792.0,70784.0,0.09461325]
[1771143458496,0.33824,70795.0,70781.0,0.07064014]
[1771143458497,0.07063241,70790.0,70781.0,0.07064014]
[1771143458905,0.07063638,70787.0,70780.0,0.52852866]
[1771143459128,0.07063608,70786.0,70778.0,0.07129546]
[1771143459846,0.07063715,70785.0,70778.0,0.00065268]
[1771143460336,0.07063715,70785.0,70778.0,0.07129597]
[1771143460578,0.07063246,70789.0,70778.0,0.00065268]
[1771143460816,0.07063357,70788.0,70781.0,0.07063958]
[1771143461135,0.07063494,70787.0,70780.0,0.07064072]
[1771143461336,0.07063577,70786.0,70778.0,0.07129548]
[1771143461755,0.07063494,70787.0,70779.0,0.07064174]
[1771143462703,0.52852866,70790.0,70778.0,0.00065268]
[1771143462854,0.07063838,70784.0,70778.0,0.00065268]
[1771143463698,0.07063682,70785.0,70778.0,0.00065268]
[1771143463885,0.07063682,70785.0,70778.0,0.07129603]
[1771143465077,0.07063471,70787.0,70779.0,0.07064239]
[1771143466483,0.0002,70794.0,70787.0,0.07063422]
[1771143466667,0.07082844,70794.0,70785.0,0.07063568]
[1771143467047,0.07082844,70794.0,70781.0,0.02346132]
[1771143467048,0.0002,70794.0,70781.0,0.02346132]
[1771143467256,0.0002,70794.0,70785.0,0.28254287]
[1771143467462,0.0002,70794.0,70787.0,0.07063255]
[1771143467673,0.0002,70794.0,70788.0,0.07063284]
[1771143467879,0.0002,70799.0,70787.0,0.02346132]
[1771143468091,0.0002,70799.0,70789.0,0.52852866]
[1771143468316,0.0002,70799.0,70791.0,0.02346132]
[1771143468561,0.0002,70799.0,70795.0,0.35505034]
[1771143468801,0.0001709,70804.0,70796.0,0.09408578]
[1771143469017,0.0001709,70804.0,70800.0,0.0706206]
[1771143469241,0.0001709,70804.0,70800.0,0.02346132]
[1771143469448,4e-05,70810.0,70803.0,0.07061754]
[1771143469648,4e-05,70810.0,70801.0,0.07061979]
[1771143469858,0.07061258,70809.0,70800.0,0.62261113]
[1771143470063,0.07061258,70809.0,70800.0,0.07062115]
[1771143470237,0.07071032,70809.0,70800.0,0.07062115]
[1771143470738,9.774e-05,70809.0,70801.0,0.07062017]
[1771143472585,0.0002,70804.0,70801.0,0.07062017]
[1771143472967,0.0002,70804.0,70800.0,0.07062122]
[1771143474844,0.0002,70804.0,70796.0,0.59038524]
[1771143474845,0.0002,70804.0,70796.0,0.09408634]
[1771143475015,0.0002,70804.0,70797.0,0.07062442]
[1771143475238,0.0002,70804.0,70798.0,0.07062262]
[1771143475443,9.774e-05,70809.0,70798.0,0.2824921]
[1771143475653,9.774e-05,70809.0,70804.0,0.07061708]
[1771143476483,9.774e-05,70809.0,70803.0,0.07061829]
[1771143476679,9.774e-05,70809.0,70804.0,0.07061677]
[1771143476883,9.774e-05,70809.0,70802.0,0.07061901]
[1771143477830,0.07071029,70809.0,70798.0,0.07068287]
[1771143478037,0.07061521,70807.0,70799.0,0.07062237]
[1771143479084,0.02268041,70806.0,70798.0,6e-05]
[1771143479482,0.02268041,70804.0,70798.0,6e-05]
[1771143479834,0.02268041,70804.0,70796.0,0.07062543]
[1771143480238,0.093298,70804.0,70796.0,0.07062543]
[1771143480867,0.07061855,70803.0,70795.0,7.5e-05]
[1771143481079,0.07062123,70801.0,70795.0,7.5e-05]
[1771143481921,0.07091089,70809.0,70797.0,0.07062347]
[1771143482120,0.07061513,70807.0,70797.0,0.07062347]
[1771143482325,0.02268041,70806.0,70795.0,7.5e-05]
[1771143482536,0.28559881,70808.0,70795.0,7.5e-05]
[1771143482753,0.07062135,70801.0,70795.0,7.5e-05]
[1771143483175,0.02297815,70809.0,70802.0,0.07061857]
[1771143483392,0.36125815,70809.0,70805.0,0.0706155]
[1771143483611,0.16310073,70809.0,70801.0,0.2824811]
[1771143483833,1e-08,70820.0,70815.0,0.07060574]
[1771143484065,1e-08,70820.0,70810.0,0.28446408]
[1771143484066,1e-08,70820.0,70810.0,0.52863799]
[1771143484309,1e-08,70820.0,70812.0,0.02346132]
[1771143484511,1e-08,70820.0,70811.0,0.28442408]
[1771143484722,1e-08,70820.0,70816.0,0.02346132]
[1771143484931,1e-08,70820.0,70810.0,0.55209931]
[1771143485233,1e-08,70820.0,70813.0,0.07060768]
[1771143485434,1e-08,70820.0,70815.0,0.07060565]
[1771143485697,1e-08,70820.0,70812.0,0.07060897]
[1771143486045,1e-08,70820.0,70813.0,0.07060754]
[1771143486246,4.325e-05,70820.0,70814.0,0.07060736]
[1771143486600,4.325e-05,70820.0,70817.0,0.07060436]
[1771143486808,4.325e-05,70820.0,70816.0,0.07060538]
[1771143487599,4.325e-05,70820.0,70814.0,0.07060731]
[1771143488363,4.325e-05,70820.0,70815.0,0.07060578]
[1771143488743,0.02268041,70818.0,70810.0,4e-05]
[1771143489080,8.325e-05,70820.0,70812.0,0.07060855]
[1771143489263,0.07060254,70819.0,70809.0,0.07061162]
[1771143489768,8e-05,70816.0,70809.0,0.07061162]
[1771143490346,8e-05,70816.0,70810.0,0.07061123]
[1771143490711,8e-05,70816.0,70811.0,0.07061036]
[1771143490914,8e-05,70816.0,70810.0,0.07061123]
[1771143491252,8e-05,70816.0,70809.0,0.07061214]
[1771143492342,8e-05,70816.0,70803.0,0.28442408]
[1771143492621,0.07060824,70814.0,70805.0,0.07061643]
[1771143492803,8e-05,70816.0,70809.0,0.00022]
[1771143492804,0.09328896,70813.0,70809.0,0.00022]
[1771143493052,0.07060855,70813.0,70804.0,0.07061718]
[1771143493338,8e-05,70816.0,70800.0,4e-05]
[1771143493339,0.02268226,70806.0,70800.0,4e-05]
[1771143493821,0.07061734,70805.0,70800.0,4e-05]
[1771143494021,0.02268226,70804.0,70800.0,4e-05]
[1771143494245,0.02268226,70804.0,70797.0,0.3253856]
[1771143494550,0.07061962,70802.0,70797.0,0.3253856]
[1771143494729,0.02268226,70801.0,70794.0,0.000295]
[1771143494933,0.02268226,70801.0,70796.0,0.07062543]
[1771143495367,0.0933007,70805.0,70796.0,0.07062543]
[1771143496036,0.02268226,70805.0,70795.0,0.07062645]
[1771143496241,0.07061332,70809.0,70799.0,0.07062163]
[1771143496462,0.02268226,70809.0,70799.0,0.07062163]
[1771143496772,0.07061411,70808.0,70799.0,0.07062163]
[1771143496780,0.07061452,70807.0,70799.0,0.07062163]
[1771143497010,0.07061562,70806.0,70797.0,0.07062413]
[1771143497201,0.07061562,70806.0,70798.0,0.07062342]
[1771143497402,0.07061453,70807.0,70798.0,0.07062342]
[1771143497668,0.07061468,70807.0,70798.0,0.07062342]
[1771143497807,0.07061554,70806.0,70798.0,0.07062342]
[1771143498418,0.07061554,70806.0,70797.0,0.07062444]
[1771143499522,0.02268226,70807.0,70798.0,0.07062294]
[1771143499680,0.09329736,70807.0,70797.0,0.07062407]
[1771143500028,0.07061593,70806.0,70797.0,0.07062407]
[1771143500316,0.09329736,70807.0,70798.0,0.07062255]
[1771143500828,0.09329736,70807.0,70797.0,0.07062407]
[1771143500829,0.07061591,70806.0,70797.0,0.07062407]
[1771143501204,0.02268226,70807.0,70798.0,0.07062297]
[1771143501410,0.07061338,70809.0,70799.0,0.07062147]
[1771143501605,0.07061369,70808.0,70799.0,0.07062147]
[1771143501806,0.59924986,70810.0,70801.0,0.07061974]
[1771143502219,0.07065187,70810.0,70801.0,0.07061974]
[1771143503419,0.07061272,70809.0,70800.0,0.07062113]
[1771143503623,0.07069461,70807.0,70798.0,0.07062275]
[1771143503771,8e-05,70807.0,70799.0,0.07062228]
[1771143503991,8e-05,70807.0,70800.0,0.07062119]
[1771143504856,8e-05,70807.0,70801.0,0.07062034]
[1771143506426,8e-05,70807.0,70800.0,0.07062104]
[1771143507750,8e-05,70807.0,70799.0,0.07062246]
[1771143508040,8e-05,70807.0,70802.0,0.07061912]
[1771143509647,0.00024,70810.0,70802.0,0.28260404]
[1771143509848,0.07060923,70813.0,70804.0,0.07061722]
[1771143510040,0.02268226,70819.0,70805.0,0.07061647]
[1771143510242,0.07060706,70815.0,70807.0,0.07061416]
[1771143510438,0.07060593,70816.0,70807.0,0.07061416]
[1771143510991,0.07060906,70813.0,70806.0,0.04463376]
[1771143511196,0.0706085,70813.0,70806.0,0.04463376]
[1771143511536,0.0706095,70812.0,70806.0,0.04463376]
[1771143512905,0.07060595,70816.0,70807.0,0.07061448]
[1771143513321,0.07060595,70816.0,70806.0,0.04463376]
[1771143513813,0.07060595,70816.0,70807.0,0.07061448]
[1771143514158,0.07060685,70815.0,70807.0,0.07061448]
[1771143514594,0.07060953,70812.0,70806.0,0.04463376]
[1771143514988,0.52875124,70820.0,70806.0,0.04463376]
[1771143515194,0.0002,70816.0,70809.0,0.0706117]
[1771143515414,0.0002,70816.0,70810.0,0.07061138]
[1771143515992,0.0002,70816.0,70812.0,0.02483174]
[1771143516595,0.07080582,70816.0,70807.0,0.09544558]
[1771143516798,0.0002,70816.0,70807.0,0.02483174]
[1771143517744,0.07060666,70815.0,70807.0,0.02483174]
[1771143517902,0.07080612,70816.0,70807.0,0.02483174]
[1771143518100,0.07080612,70816.0,70807.0,0.0954458]
[1771143518307,0.07060667,70815.0,70807.0,0.02479174]
[1771143520549,0.0002,70816.0,70811.0,0.02483174]
[1771143520843,0.0002,70816.0,70802.0,0.02483174]
[1771143521044,0.0002,70816.0,70801.0,0.33828]
[1771143521045,0.0002,70816.0,70813.0,0.02483174]
[1771143521462,0.0002,70816.0,70810.0,0.07061129]
[1771143522022,0.0002,70816.0,70811.0,0.07061011]
[1771143522269,0.0002,70816.0,70810.0,0.07061129]
[1771143523761,0.07060186,70820.0,70810.0,0.07065129]
[1771143523988,0.59900863,70820.0,70810.0,0.07065129]
[1771143524916,0.07060252,70819.0,70810.0,0.07065129]
[1771143525589,0.59900863,70820.0,70811.0,0.07061018]
[1771143525801,0.07060256,70819.0,70811.0,0.07061018]
[1771143526010,0.07060256,70819.0,70810.0,0.07065114]
[1771143526886,0.59900852,70820.0,70811.0,0.07060983]
[1771143527121,0.07060175,70820.0,70811.0,0.07060983]
[1771143527242,0.07080096,70821.0,70811.0,0.07060983]
[1771143527442,0.07080096,70821.0,70811.0,0.07065307]
[1771143527643,0.07060165,70820.0,70811.0,0.07065307]
[1771143528610,0.07060274,70819.0,70811.0,0.07065307]
[1771143528843,0.07080274,70819.0,70811.0,0.07065307]
[1771143528966,0.07080274,70819.0,70811.0,4.324e-05]
[1771143529173,0.07060471,70817.0,70811.0,4.324e-05]
[1771143530688,0.07080307,70819.0,70811.0,4.324e-05]
[1771143531204,0.07060354,70818.0,70811.0,4.324e-05]
[1771143531606,0.07098694,70818.0,70811.0,4.324e-05]
[1771143532597,0.0003834,70818.0,70811.0,4.324e-05]
[1771143532799,0.0003834,70818.0,70812.0,0.07060942]
[1771143533426,0.0003834,70818.0,70813.0,0.02478927]
[1771143534047,0.0003834,70818.0,70813.0,0.07060833]
[1771143534270,0.33828,70823.0,70811.0,0.07065202]
[1771143534271,0.07063215,70830.0,70825.0,0.02478927]
[1771143534521,4e-05,70830.0,70825.0,0.02478927]
[1771143534732,0.07059325,70829.0,70825.0,0.02478927]
[1771143535890,0.07063188,70830.0,70825.0,0.02478927]
[1771143536120,0.07059271,70829.0,70825.0,0.02478927]
[1771143537694,0.0706323,70830.0,70825.0,0.02478927]
[1771143538122,0.0706323,70830.0,70820.0,0.07060119]
[1771143538123,0.07059255,70829.0,70819.0,0.02478927]
[1771143538743,0.07059255,70829.0,70820.0,0.02478927]
[1771143538950,4e-05,70830.0,70821.0,0.02478927]
[1771143539152,4e-05,70830.0,70822.0,0.02478927]
[1771143539350,0.07063162,70830.0,70822.0,0.02478927]
[1771143539630,4e-05,70830.0,70822.0,0.02478927]
[1771143539841,0.07063175,70830.0,70822.0,0.02478927]
[1771143540511,4e-05,70830.0,70822.0,0.02478927]
[1771143540717,4e-05,70830.0,70825.0,0.07059568]
[1771143540951,0.0001288,70838.0,70822.0,0.02478927]
[1771143541162,0.07057576,70846.0,70837.0,0.02478927]
[1771143541382,0.07057576,70846.0,70838.0,0.02478927]
[1771143541589,0.0705776,70844.0,70838.0,0.02478927]
[1771143541803,0.72750748,70856.0,70838.0,0.02478927]
[1771143542019,0.07057772,70844.0,70838.0,0.02478927]
[1771143542432,0.0705786,70843.0,70838.0,0.02478927]
[1771143542638,0.07070748,70844.0,70833.0,0.09537757]
[1771143542842,0.07070748,70844.0,70834.0,0.02478927]
[1771143543056,0.0002,70838.0,70834.0,0.02478927]
[1771143544025,0.0002,70838.0,70835.0,0.0705859]
[1771143544246,0.0002,70838.0,70836.0,0.02478927]
[1771143544615,0.00012976,70844.0,70838.0,0.07058289]
[1771143544832,0.00012976,70844.0,70835.0,0.02478927]
[1771143545439,0.07057944,70843.0,70835.0,0.02478927]
[1771143546093,0.28231441,70843.0,70830.0,4e-05]
[1771143546322,0.52799547,70840.0,70830.0,4e-05]
[1771143546513,0.07058359,70838.0,70830.0,4e-05]
[1771143546726,0.52799547,70840.0,70830.0,4e-05]
[1771143546935,0.00012976,70844.0,70835.0,0.09537506]
[1771143547163,0.00012976,70844.0,70839.0,0.02478927]
[1771143547378,0.07056839,70854.0,70842.0,0.07057887]
[1771143547601,0.07056839,70854.0,70837.0,0.2719152]
[1771143547602,0.07069863,70852.0,70843.0,0.02478927]
[1771143547809,0.0001288,70852.0,70843.0,0.02478927]
[1771143548400,0.07069872,70852.0,70843.0,0.02478927]
[1771143548591,0.07056992,70852.0,70843.0,0.02478927]
[1771143549530,0.07056875,70853.0,70843.0,0.02478927]
[1771143549765,0.07057046,70852.0,70843.0,0.02478927]
[1771143549966,0.07057359,70849.0,70843.0,0.02478927]
[1771143550200,0.0001486,70854.0,70843.0,0.02478927]
[1771143550375,0.07056992,70852.0,70843.0,0.02478927]
[1771143550524,0.07076992,70852.0,70843.0,0.02478927]
[1771143550926,0.07057134,70851.0,70843.0,0.02478927]
[1771143551553,0.07057172,70850.0,70843.0,0.02478927]
[1771143551748,0.0705729,70849.0,70836.0,0.33828]
[1771143551954,0.07057452,70848.0,70837.0,0.02478927]
[1771143552158,0.07057473,70847.0,70837.0,0.02478927]
[1771143552497,0.35015386,70841.0,70830.0,4e-05]
[1771143552778,0.02480609,70843.0,70831.0,0.07059056]
[1771143552986,0.07058002,70842.0,70831.0,0.07059056]
[1771143553195,0.07058002,70842.0,70831.0,0.09537983]
[1771143553393,0.07058002,70842.0,70831.0,0.02478927]
[1771143553633,0.07058123,70841.0,70831.0,0.02478927]
[1771143553832,0.07058162,70840.0,70831.0,0.02478927]
[1771143554041,0.07058486,70837.0,70831.0,0.02478927]
[1771143554216,0.07058542,70838.0,70822.0,0.36171073]
[1771143554448,0.07058542,70838.0,70826.0,0.07059551]
[1771143554940,0.27131662,70839.0,70826.0,0.09402624]
[1771143554941,0.07058478,70837.0,70826.0,0.09402624]
[1771143556259,0.07058383,70838.0,70827.0,0.07059446]
[1771143556429,4e-05,70840.0,70829.0,0.02343073]
[1771143557197,0.0706216,70840.0,70829.0,0.09402291]
[1771143557396,4e-05,70840.0,70830.0,0.07059153]
[1771143557689,0.27131662,70839.0,70819.0,0.02343073]
[1771143557892,0.27131662,70839.0,70815.0,0.29419419]
[1771143557893,0.07058548,70838.0,70826.0,0.00022]
[1771143558067,0.07058567,70836.0,70826.0,0.00022]
[1771143558568,0.07008669,70835.0,70826.0,0.00022]
[1771143559172,0.07008669,70835.0,70826.0,0.02365073]
[1771143560310,0.07058583,70836.0,70826.0,0.02365073]
[1771143562542,0.07058676,70835.0,70826.0,0.02365073]
[1771143562749,0.07058768,70834.0,70826.0,0.02365073]
[1771143563147,0.07058768,70834.0,70826.0,0.02361073]
[1771143563642,0.07058695,70835.0,70826.0,0.02361073]
[1771143566583,0.27131662,70839.0,70823.0,0.33828]
[1771143566790,0.29594346,70832.0,70818.0,0.0004504]
[1771143566989,0.07059321,70829.0,70818.0,0.02388113]
[1771143567213,0.59858706,70830.0,70818.0,0.07105322]
[1771143567214,0.5985874,70830.0,70818.0,0.07105322]
[1771143567433,0.07058657,70835.0,70823.0,0.07059783]
[1771143567813,0.27131662,70836.0,70821.0,0.07060044]
[1771143568202,0.07058906,70833.0,70820.0,0.09403184]
[1771143568414,0.07058657,70835.0,70821.0,0.02343073]
[1771143568593,0.0705858,70836.0,70825.0,0.07059641]
[1771143568824,0.07058663,70835.0,70825.0,0.15142252]
[1771143569134,0.07058761,70834.0,70825.0,0.08082611]
[1771143569285,0.07058663,70835.0,70825.0,0.08082611]
[1771143569499,0.07058874,70833.0,70825.0,0.08082611]
[1771143569698,0.07058764,70834.0,70825.0,0.08082611]
[1771143569895,7e-05,70832.0,70825.0,0.08082611]
[1771143571947,7e-05,70832.0,70822.0,0.08082611]
[1771143572114,7e-05,70832.0,70826.0,0.08082611]
[1771143572332,0.52803547,70840.0,70825.0,0.07059592]
[1771143572333,0.07062226,70840.0,70825.0,0.33828]
[1771143572531,0.0705833,70839.0,70829.0,0.08082611]
[1771143572852,0.59861732,70840.0,70829.0,0.08082611]
[1771143573051,0.59861732,70840.0,70829.0,0.15141865]
[1771143573354,0.0002,70835.0,70829.0,0.15141865]
[1771143573897,0.0002,70835.0,70829.0,0.08082611]
[1771143575179,0.07078661,70835.0,70825.0,0.00022]
[1771143575387,0.0002,70835.0,70825.0,0.00022]
[1771143575609,0.0002,70835.0,70829.0,0.08082611]
[1771143577651,0.07078723,70835.0,70829.0,0.08082611]
[1771143577880,0.0705878,70834.0,70829.0,0.08082611]
[1771143578080,0.07058785,70834.0,70829.0,0.08082611]
[1771143578287,0.07058785,70834.0,70830.0,4e-05]
[1771143578502,0.0002,70835.0,70818.0,0.0004504]
[1771143578741,0.07059065,70831.0,70820.0,0.07060092]
[1771143578980,0.07059167,70830.0,70819.0,0.07060252]
[1771143579928,0.07059167,70830.0,70820.0,0.08082611]
[1771143580628,0.34190739,70831.0,70820.0,0.15142743]
[1771143580860,0.0002,70835.0,70820.0,0.08082611]
[1771143581072,0.0002,70835.0,70831.0,0.08082611]
[1771143581275,0.0002,70835.0,70823.0,0.07059853]
[1771143581484,0.0002,70835.0,70830.0,0.04041306]
[1771143582393,0.0002,70835.0,70830.0,0.0705913]
[1771143582622,4e-05,70840.0,70833.0,0.04041306]
[1771143583750,4e-05,70840.0,70833.0,0.07058798]
[1771143583982,4e-05,70840.0,70834.0,0.04041306]
[1771143584428,4e-05,70840.0,70834.0,0.07058748]
[1771143584672,4e-05,70840.0,70835.0,0.04041306]
[1771143585148,0.00012969,70843.0,70831.0,0.31248212]
[1771143585363,0.00012969,70843.0,70837.0,0.04041306]
[1771143585583,0.00012969,70843.0,70838.0,0.07058358]
[1771143585728,0.00012969,70843.0,70838.0,0.07058288]
[1771143585925,0.00012969,70843.0,70839.0,0.04041306]
[1771143587903,0.00023756,70843.0,70839.0,0.04041306]
[1771143589702,0.07071685,70854.0,70831.0,0.27206906]
[1771143589917,0.07066028,70853.0,70843.0,0.04041306]
[1771143590125,0.07057014,70852.0,70843.0,0.04041306]
[1771143590319,9.155e-05,70853.0,70843.0,0.04041306]
[1771143590534,9.155e-05,70853.0,70844.0,0.07057708]
[1771143590752,9.155e-05,70853.0,70840.0,0.86627547]
[1771143590966,9.155e-05,70853.0,70846.0,0.04041306]
[1771143591395,9.155e-05,70853.0,70852.0,0.07056963]
[1771143591681,4e-05,70860.0,70843.0,0.27206906]
[1771143591682,4e-05,70860.0,70851.0,0.07056994]
[1771143591885,0.00047238,70860.0,70851.0,0.04041306]
[1771143592101,0.00047238,70860.0,70850.0,0.07057124]
[1771143592102,0.00047238,70860.0,70855.0,0.04041306]
[1771143592847,0.0001895,70865.0,70855.0,0.04041306]
[1771143593108,4e-05,70870.0,70868.0,0.0705531]
[1771143593266,0.0001315,70870.0,70868.0,0.04041306]
[1771143593678,0.0001315,70870.0,70866.0,0.07055373]
[1771143593879,0.0001315,70870.0,70867.0,0.04041306]
[1771143595076,0.07073608,70876.0,70867.0,0.04041306]
[1771143595483,0.0002,70870.0,70867.0,0.04041306]
[1771143596124,0.0002,70870.0,70861.0,0.04041306]
[1771143596338,0.0002,70870.0,70861.0,0.04050456]
[1771143596987,0.0002,70870.0,70862.0,0.11097273]
[1771143598524,0.0002,70870.0,70862.0,0.07055967]
[1771143598740,0.0002,70870.0,70863.0,0.04041306]
[1771143599167,0.07055345,70869.0,70863.0,0.04041306]
[1771143599375,0.0002,70870.0,70863.0,0.04041306]
[1771143599824,0.07075179,70870.0,70863.0,0.04041306]
[1771143600283,0.0002,70870.0,70863.0,0.04041306]
[1771143603113,0.0002,70870.0,70861.0,0.07065181]
[1771143603114,0.07075173,70870.0,70861.0,9.15e-05]
[1771143603319,0.0705527,70869.0,70861.0,9.15e-05]
[1771143603913,0.0002,70870.0,70861.0,0.07065211]
[1771143604118,0.0002,70870.0,70861.0,9.15e-05]
[1771143604565,0.07075193,70870.0,70861.0,9.15e-05]
[1771143604816,0.07055309,70869.0,70861.0,9.15e-05]
[1771143605037,0.07055451,70868.0,70857.0,0.11095994]
[1771143605241,0.07079231,70870.0,70853.0,0.33816]
[1771143605242,0.27308588,70866.0,70853.0,0.33816]
[1771143605443,0.0705617,70860.0,70850.0,0.0404442]
[1771143605654,0.41863131,70860.0,70849.0,0.33728257]
[1771143605848,0.41863131,70860.0,70849.0,0.33771495]
[1771143605849,0.27308588,70859.0,70849.0,0.33771495]
[1771143606519,0.07056477,70857.0,70849.0,0.33771495]
[1771143606745,0.07056477,70857.0,70849.0,0.00043238]
[1771143606991,0.27308588,70859.0,70849.0,0.07100488]
[1771143607206,4e-05,70860.0,70850.0,0.0404042]
[1771143607628,4e-05,70860.0,70850.0,0.11097557]
[1771143607764,4e-05,70860.0,70851.0,0.0404042]
[1771143608384,0.07056266,70859.0,70851.0,0.0404042]
[1771143609094,0.07056829,70854.0,70849.0,0.00043238]
[1771143609358,0.07057482,70847.0,70843.0,0.00022]
[1771143609531,0.07057482,70847.0,70839.0,0.000101]
[1771143609532,0.27308588,70847.0,70839.0,0.000101]
[1771143610558,0.27308588,70847.0,70843.0,0.00022]
[1771143610785,0.27308588,70846.0,70843.0,0.00022]
[1771143611468,4e-05,70850.0,70836.0,0.3383221]
[1771143611681,4e-05,70850.0,70835.0,0.00022]
[1771143611682,0.0705803,70842.0,70835.0,0.00022]
[1771143611907,0.0705803,70842.0,70835.0,0.00034969]
[1771143612111,0.27308588,70844.0,70835.0,0.00034969]
[1771143612320,0.07057697,70845.0,70835.0,0.00034969]
[1771143612529,0.07057892,70843.0,70835.0,0.00034969]
[1771143613152,0.07058624,70836.0,70830.0,4e-05]
[1771143613366,0.07058624,70837.0,70830.0,4e-05]
[1771143613571,0.00012962,70837.0,70830.0,4e-05]
[1771143614159,0.07071483,70837.0,70830.0,4e-05]
[1771143614565,0.00012962,70837.0,70830.0,4e-05]
[1771143615236,0.00012962,70837.0,70826.0,0.01878883]
[1771143615458,0.00012962,70837.0,70826.0,0.04368834]
[1771143615873,0.00012962,70837.0,70826.0,0.01878883]
[1771143616069,0.07071442,70837.0,70827.0,0.02489951]
[1771143617672,0.070589,70833.0,70825.0,0.12020985]
[1771143617894,0.07058956,70832.0,70825.0,0.12020985]
[1771143618371,0.07059092,70831.0,70825.0,0.12020985]
[1771143618594,0.07059092,70831.0,70827.0,0.00022]
[1771143618968,0.27259454,70834.0,70827.0,0.00022]
[1771143619174,0.07058568,70836.0,70827.0,0.02511951]
[1771143619714,0.00012962,70837.0,70827.0,0.00022]
[1771143619889,0.27259454,70836.0,70827.0,0.00022]
[1771143620226,0.07058833,70834.0,70827.0,0.00022]
[1771143620438,0.07058957,70832.0,70827.0,0.00022]
[1771143621008,0.07058778,70834.0,70827.0,0.00022]
[1771143621145,0.07058891,70833.0,70827.0,0.00022]
[1771143621369,0.07058778,70834.0,70827.0,0.00022]
[1771143621563,0.07058997,70832.0,70827.0,0.00022]
[1771143622193,0.07058837,70834.0,70827.0,0.00022]
[1771143622401,0.0705896,70832.0,70827.0,0.00022]
[1771143622579,0.07058893,70833.0,70827.0,0.00022]
[1771143623198,0.07058893,70833.0,70827.0,0.00018]
[1771143623621,0.07058694,70835.0,70827.0,0.00018]
[1771143623847,4e-05,70840.0,70828.0,0.02489951]
[1771143624060,4e-05,70840.0,70830.0,0.02489951]
[1771143624216,4e-05,70840.0,70832.0,0.02489951]
[1771143624413,4e-05,70840.0,70834.0,0.02489951]
[1771143624620,4e-05,70840.0,70835.0,0.02489951]
[1771143627636,0.00024,70840.0,70835.0,0.02489951]